Cogmind - Beta 16.1 @@@ ROGUE MODE // 2026.04.08 @ 22:30:07 Player: Maelyn Result: Destroyed by S-10 Pest with Light Assault Rifle Performance ------------- Evolutions (0) 0 Regions Visited (2) 400 Robots Destroyed (20) 100 Value Destroyed (310) 310 Prototype IDs (0) 0 Alien Tech Used (0) 0 Bonus (0) 0 TOTAL SCORE: 810 Bonus ------- None Cogmind --------- Core Integrity 0/250 Matter 134/300 Energy 125/125 System Corruption 0% Temperature Cool (0) Movement Treading (160) Location -10/Mines Parts ------- > --- POWER (1) -------- Light Ion Engine > --- PROPULSION (2) --- Light Treads Light Treads > --- UTILITY (2) ------ Large Storage Unit Seismic Detector > --- WEAPON (2) ------- Light Assault Rifle Light Assault Rifle > --- INVENTORY (15) --- Aluminum Leg Medium Storage Unit Small Matter Pod (0) Sensor Array Light Armor Plating Particle Cannon Particle Cannon Light Assault Rifle Heavy Assault Rifle Peak State ------------ > --- POWER ------------ Ion Engine > --- PROPULSION ------- Light Treads Light Treads > --- UTILITY ---------- Small Storage Unit Seismic Detector > --- WEAPON ----------- Heavy Assault Rifle Heavy Assault Rifle > --- INVENTORY -------- Ion Engine Aluminum Leg Aluminum Leg EM Pulse Gun Medium Laser Small Laser Particle Cannon Particle Cannon [Rating: 10] Favorites ----------- Power Ion Engine Engine Ion Engine Propulsion Light Treads Treads Light Treads Leg Aluminum Leg Utility Seismic Detector Device Seismic Detector Storage Large Storage Unit Weapon Heavy Assault Rifle Energy Gun Medium Laser Energy Cannon Particle Cannon Ballistic Gun Heavy Assault Rifle Build | -11 -10 -10 ------- Run | Yrd Mat Min Slots Evolved . | . . . Power . | . . . Propulsion . | . . . Utility . | . . . Weapon . | . . . Parts Attached 18 | 7 7 4 Power 3 | 1 1 1 Engine 3 | 1 1 1 Core . | . . . Reactor . | . . . Propulsion 4 | 2 2 . Treads 2 | . 2 . Leg 2 | 2 . . Wheel . | . . . Hover . | . . . Flight . | . . . Utility 3 | 2 1 . Device 1 | 1 . . Storage 2 | 1 1 . Processor . | . . . Hackware . | . . . Protection . | . . . Artifact . | . . . Weapon 8 | 2 3 3 Energy Gun 2 | 2 . . Energy Cannon 1 | . 1 . Ballistic Gun 5 | . 2 3 Ballistic Cannon . | . . . Launcher . | . . . Special Weapon . | . . . Impact Weapon . | . . . Slashing Weapon . | . . . Piercing Weapon . | . . . Special Melee Weapon . | . . . Unidentified Prototypes . | . . . Parts Lost 5 | . 4 1 Power 2 | . 1 1 Propulsion 1 | . 1 . Utility . | . . . Weapon 2 | . 2 . Highest Loss Streak 3 | . 3 1 To Critical Strikes . | . . . Average Backups 9 | 4 10 9 Power . | 1 1 . Propulsion 2 | 1 2 1 Utility 2 | . 3 4 Weapon 3 | 1 3 3 Tool/Special . | . . . Unused Backups 6 | . 1 5 Power . | . . . Propulsion . | . . . Utility 4 | . . 4 Weapon 2 | . 1 1 Tool/Special . | . . . Average Slot Usage (%) 86 | . 87 83 Engine 12 | . 12 11 Treads 16 | . 16 15 Leg 4 | . 4 6 Device 13 | . 13 14 Storage 14 | . 14 14 Energy Gun 3 | . 3 . Energy Cannon 1 | . 2 . Ballistic Gun 18 | . 18 20 Peak Build Rating 10 | 7 10 8 Average Rating 7 | 4 8 6 On Entrance 3 | . 7 4 Avg Prop Armor Cover (%) . | . . . Naked Turns . | . . . Heaviest Build 33 | 14 33 26 Greatest Support 40 | 20 40 40 Greatest Overweight (x) 10 | 1 10 2 Average Overweight (x) . | . . . Largest Inventory Capacity 15 | 8 15 15 Average Capacity 13 | 7 13 15 Most Carried 15 | 8 15 12 Average Carried 9 | 4 10 9 Final Capacity 15 | 8 15 15 Final Carried 11 | 4 11 9 Class Distribution -------------------- 92% | Mutant 7% | Scavenger-Mutant Dominant Class ---------------- Mutant | -10/Materials Scavenger-Mutant | -10/Mines Resources | -11 -10 -10 ----------- Run | Yrd Mat Min Matter Collected 521 | 190 301 30 Remotely . | . . . Salvage Created 503 | 62 365 76 Parts 43 | 8 24 11 Haulers Intercepted 1 | . 1 . Recyclers Shooed . | . . . Parts Field Recycled . | . . . Retrieved Matter . | . . . Parts Self-Destructed . | . . . Prevented . | . . . Parts Restored . | . . . Kills | -11 -10 -10 ------- Run | Yrd Mat Min Combat Hostiles Destroyed 13 | . 8 5 Guns 13 | . 8 5 Classes Destroyed 6 | 1 5 . Worker 1 | . 1 . Tunneler 4 | 3 1 . Hauler 1 | . 1 . Watcher 1 | . 1 . Swarmer 8 | . 3 5 Grunt 5 | . 5 . Best Kill Streak 4 | 3 4 3 Combat Bots Only 3 | . 3 3 Max Kills in Single Turn 1 | 1 1 1 Gunslinging . | . . . Exploded . | . . . Melee . | . . . Uniques/NPCs Destroyed . | . . . Combat | -11 -10 -10 -------- Run | Yrd Mat Min Hostile Shots Fired 136 | . 91 45 Missed 30 | . 18 12 Hits 106 | . 73 33 Projectile 106 | . 73 33 Damage Taken 1065 | . 805 260 Core 256 | . 208 48 Absorbed by Shields . | . . . Core Remaining (%) 100 | 100 . . Volleys Fired 62 | 3 34 25 Largest 2 | 2 2 2 Hottest 91 | 90 91 40 Shots Fired 103 | 6 63 34 Gun 101 | 6 61 34 Cannon 2 | . 2 . Launcher . | . . . Special . | . . . Kinetic 84 | . 50 34 Thermal 19 | 6 13 . Explosive . | . . . Electromagnetic . | . . . Robot Hit Streak 15 | 2 15 5 Robot Miss Streak 7 | 1 7 5 Penetration Max . | . . . Secondary Targets 4 | . 3 1 Max Gunslinging Chain 1 | . 1 1 Shots Hit Robots 57 | 3 39 15 Core Hits 25 | 3 15 7 Critical Kills . | . . . Critical Parts Destroyed . | . . . Critical Strikes 2 | 1 1 . Burn 2 | 1 1 . Melee Attacks . | . . . Impact . | . . . Slashing . | . . . Piercing . | . . . Sneak Attacks . | . . . Combat Hostiles . | . . . Follow-up Attacks . | . . . Damage Inflicted 758 | 34 604 120 Guns 752 | 34 598 120 Cannons . | . . . Explosions . | . . . Melee . | . . . Ramming 6 | . 6 . Kinetic 632 | . 512 120 Thermal 120 | 34 86 . Explosive . | . . . Electromagnetic . | . . . Impact . | . . . Slashing . | . . . Piercing . | . . . Highest Corruption . | . . . Average Corruption . | . . . Corruption Purged . | . . . Corruption Blocked . | . . . Overload Shots . | . . . Overflow Damage . | . . . Projectiles . | . . . Explosions . | . . . Melee . | . . . Knockbacks . | . . . Impact . | . . . Kinetic . | . . . Secondary . | . . . Self-Inflicted Damage . | . . . Shots . | . . . Rammed 1 | . 1 . Targets Rammed 1 | . 1 . Kicked . | . . . Crushed . | . . . Highest Temperature 234 | 30 234 . Average Temperature 76 | 18 85 . Received Heat Transfer 402 | . 402 . Effects 1 | . 1 . Energy Bleed 1 | . 1 . Siege Activations . | . . . Martial Activations . | . . . Shielding Activations . | . . . Robots Disrupted . | . . . Combat Hostiles . | . . . Robots Corrupted . | . . . Combat Hostiles . | . . . Parts Fried . | . . . Impact Corruptions . | . . . Robots Melted . | . . . Combat Hostiles . | . . . Parts Melted 2 | 1 1 . Heat Transferred 494 | 161 333 . Parts Sabotaged . | . . . Parts Stolen . | . . . Parts Stripped . | . . . Power Chain Reactions . | . . . Alert | -11 -10 -10 ------- Run | Yrd Mat Min Maximum Alert Level . | . . . Low Security (%) 100 | 100 100 100 Level 1 . | . . . Level 2 . | . . . Level 3 . | . . . Level 4 . | . . . Level 5 . | . . . High Security . | . . . Max Security . | . . . Peak Influence 62 | 10 62 50 Initial . | . . . Average 14 | 1 13 23 Influence Increases 359 | 15 214 130 Destroy 0b10 Robot/C 260 | . 160 100 Destroy 0b10 Robot/NC 35 | 15 20 . Destroy Leader 64 | . 34 30 Influence Decreases 309 | 15 214 80 Time Decay 283 | 15 198 70 Lost Part 26 | . 16 10 Squads Dispatched 2 | . 2 . Investigation . | . . . Extermination . | . . . Reinforcement 2 | . 2 . Assault . | . . . Garrison . | . . . Intercept . | . . . Searches Triggered . | . . . Construction Impeded . | . . . Haulers Reinforced . | . . . Active Scanning Responses . | . . . Cargo Convoy Interrupts . | . . . Stealth | -11 -10 -10 --------- Run | Yrd Mat Min Distress Signals 1 | . 1 . Communications Jammed . | . . . Distress Signals . | . . . Times Spotted 29 | . 20 9 Peak Tracking Total 6 | . 4 6 Tactical Retreats . | . . . Traps | -11 -10 -10 ------- Run | Yrd Mat Min Traps Triggered 7 | . 7 . Indirectly . | . . . Trap Hack Attempts . | . . . Triggered . | . . . Disarmed . | . . . Reprogrammed . | . . . Reused . | . . . Traps Extracted . | . . . Installed . | . . . Triggered . | . . . Machines | -11 -10 -10 ---------- Run | Yrd Mat Min Machines Disabled . | . . . Max in Single Turn . | . . . Machines Repaired . | . . . Machines Dismantled . | . . . Machines Sabotaged . | . . . Overloaded Fab Kills . | . . . Hacking | -11 -10 -10 --------- Run | Yrd Mat Min Machines Accessed . | . . . Terminals . | . . . Fabricators . | . . . Repair Stations . | . . . Recycling Units . | . . . Scanalyzers . | . . . Garrison Access . | . . . Total Hacks . | . . . Successful . | . . . Failed . | . . . Catastrophic . | . . . Database Lockouts . | . . . Manual . | . . . Terminals . | . . . Fabricators . | . . . Repair Stations . | . . . Recycling Units . | . . . Scanalyzers . | . . . Garrison Access . | . . . Terminal Hacks . | . . . Fabricator Hacks . | . . . Repair Station Hacks . | . . . Recycling Unit Hacks . | . . . Scanalyzer . | . . . Garrison Access Hacks . | . . . Unauthorized Hacks . | . . . Terminals . | . . . Fabricators . | . . . Repair Stations . | . . . Recycling Units . | . . . Scanalyzers . | . . . Garrison Access . | . . . Data Cores Recovered . | . . . Used . | . . . Hacking Detections . | . . . Full Trace Events . | . . . Feedback Events . | . . . Feedback Blocked . | . . . Robot Schematics Acquired . | . . . Robots Built . | . . . Authchips . | . . . Time . | . . . Total Robot Build Rating . | . . . Part Schematics Acquired . | . . . Parts Built . | . . . Authchips . | . . . Time . | . . . Total Part Build Rating . | . . . Part Studies Acquired . | . . . Parts Repaired . | . . . Time . | . . . Parts Recycled . | . . . Recycled Matter . | . . . Retrieved Matter . | . . . Retrieved Components . | . . . Parts Scanalyzed . | . . . Part Schematics Acquired . | . . . Parts Damaged . | . . . Bothacking | -11 -10 -10 ------------ Run | Yrd Mat Min Used RIF Installer . | . . . Robots Hacked . | . . . Non-combat . | . . . Combat . | . . . Robot Hacks Applied . | . . . Relay Couplers Released . | . . . Fabnet Peak Effective % . | . . . Robots Rewired . | . . . Allies Hacked . | . . . Hacks Repelled . | . . . Allies | -11 -10 -10 -------- Run | Yrd Mat Min Total Allies . | . . . Largest Group . | . . . Highest-Rated Group . | . . . Highest-Rated Ally . | . . . Total Orders . | . . . Ally Attacks . | . . . Total Damage . | . . . Kills . | . . . Allies Corrupted . | . . . Allies Melted . | . . . Intel | -11 -10 -10 ------- Run | Yrd Mat Min Active Infowar (turns) 1079 | 7 918 154 Seismic 1079 | 7 918 154 Robot Analysis Total . | . . . Derelict Logs Recovered . | . . . Drone Launches . | . . . Drone Recoveries . | . . . Exploration | -11 -10 -10 ------------- Run | Yrd Mat Min Turns Passed 1170 | 90 926 154 Spaces Moved 519 | 62 407 50 Core 41 | 21 20 . Treads 346 | . 306 40 Legs 132 | 41 81 10 Wheels . | . . . Hover . | . . . Flight . | . . . Fastest Speed 50 | 50 120 160 Average Speed 181 | 104 193 180 Slowest Speed 550 | 120 550 260 Overloaded Moves . | . . . Propulsion Burnouts . | . . . Robots Hopped . | . . . Potential Cave-ins . | . . . Cave-ins Triggered . | . . . Exploration Rate (%) 22 | 5 54 9 Regions Visited 2 Branch Regions 1 Pre-discovered Areas . | . . . Known Exits Taken . | . . . Unknown Exits Taken 2 | 1 1 . Scrap Searched . | . . . Spaces Dug . | . . . Terrain Destroyed . | . . . Melee . | . . . Projectile . | . . . AOE . | . . . Terrain Rammed . | . . . Walls Destroyed . | . . . Machines Disabled . | . . . Actions | -11 -10 -10 --------- Run | Yrd Mat Min Total 644 | 80 478 86 Wait . | . . . Move 517 | 61 406 50 Hop . | . . . Pick Up 28 | 9 16 3 Fast Attach 5 | 2 3 . Attach 17 | 5 7 5 Detach . | . . . Swap 11 | . 8 3 Drop 3 | . 3 . Fire 62 | 3 34 25 Melee . | . . . Ram . | . . . Kick . | . . . Crush 1 | . 1 . Escape Stasis . | . . . Rewire . | . . . Trap . | . . . Miscellaneous . | . . . Route ------- -11/Scrapyard -10/Materials (discovered 2 exits: [*Mat] / [*Min]) -10/Mines History --------- Turn | Location | Event 25 | -11/Scrapyard | Discovered new exit (range 14) 91 | -11/Scrapyard | Entered Materials 315 | -10/Materials | Build established: Mutant 324 | -10/Materials | Discovered new exit (range 16) 586 | -10/Materials | Discovered new exit (range 6) 907 | -10/Materials | Core integrity fell below 50% 997 | -10/Materials | Lost 3 parts (1p2w) 1014 | -10/Materials | Core integrity fell below 20% 1017 | -10/Materials | Entered Mines 1171 | -10/Mines | Destroyed by S-10 Pest with Light Assault Rifle Last Messages --------------- 00895_ Acquired 14 matter. 00923_ Hvy. Assault Rifle destroyed. 00942_ Ion Engine destroyed. 00944_ Acquired 54 matter. 00966_ Med. Laser destroyed. 01009_ Aluminum Leg destroyed. LOCATION=UNKNOWN GOAL=ESCAPE Something is scanning the area. 01023_ S-10 Pest destroyed. 01041_ Ion Engine destroyed. 01046_ S-10 Pest destroyed. 01048_ Acquired 16 matter. 01051_ Acquired 14 matter. 01059_ Acquired Lgt. Ion Engine. 01070_ Acquired Lgt. Assault Rifle. 01111_ K-01 Serf collects debris. 01154_ S-10 Pest destroyed. 01154_ Switching to secondary target: S-10 Pest. 01164_ S-10 Pest destroyed. Map ----- +----------------------------------------------------+ | ????????????????????####??????????????????? | | ????????????????????# ##?????????????????? | | ????????????????????# ##????????????????? | | ????????????????????#= ##???????????????? | | ?????????????######## #???????????????? | | ?????????????# = =% #???????????????? | | ?????????????# ######= #???????????????? | | ?????????????# #????## #???????????????? | | ?????????????# #?????## ##???????????????? | | ?????????????# #???????###????????????????? | | ?????????????# #??????????????????????????? | | ?????????????# #??????????????????????????? | | ?????????????# #??????????????????????????? | | ????????## ### #??????????????????????????? | | ????????# #??????????????????????????? | | ????????# #### #??????????????????????????? | | ?????????????# ##########?????????????????? | | ?????????????# #?????????????????? | | ?????????????########## #???#?????????????? | | ?????????????????????## #?? #?????????????? | | ????????????????????## ### #?????????????? | | ????????????????????# #?????????????? | | ????????????????????# ###?????????????? | | ????????????????????## #???????????????? | | ?????????????????????## #???????????????? | | ??????????????????????## @#???????????????? | | ???????????????????????##[#???????? """???? | | ????????????????????????#s### ??? | | ????????????????????????#ss """ ??????? | | ????????????????????????#=### """ ??????? | | ????????????????????????# #???????????????? | | ????????????????????????# ???????????????? | | ????????????????????????###???????????????? | | ??????????????????????????????????????????? | | ??????????????????????????????????????????? | | ??????????????????????????????????????????? | | ??????????????????????????????????????????? | | ??????????????????????????????????????????? | | ??????????????????????????????????????????? | | ??????????????????????????????????????????? | | ??????????????????????????????????????????? | | ??????????????????????????????????????????? | | ??????????????????????????????????????????? | | ??????????????????????????????????????????? | | ??????????????????????????????????????????? | | ??????????????????????????????????????????? | | ??????????????????????????????????????????? | | ??????????????????????????????????????????? | | ??????????????????????????????????????????? | | ??????????????????????????????????????????? | +----------------------------------------------------+ Best States ------------- Heat Dissipation 25 Energy Generation 10 Energy Capacity 250 Matter Stores 258 Matter Capacity 300 Sight Range 16 Terrain Scan Density 10 Evasion (%) 55 Recoil Reduction 2 Item Schematics ----------------- None Robot Schematics ------------------ None Fabricated ------------ Nothing Repaired ---------- Nothing Studied --------- None Alien Tech Used ----------------- None Achievements -------------- None Challenges ------------ None Game ------ Seed ShockDisruptorPropulsion Manual? 0 Play Time 00:09:05 Cumulative 24.5 hours Start 2026.04.08 @ 22:22:01 End 2026.04.08 @ 22:30:07 Sessions 1 Manual Loads 0 Difficulty Rogue Special Mode None Game No. 74 Rogue 74 Adventurer 0 Explorer 0 Win Type - Total 0 Types 0/0/0/0/0/0/0/0/0/0 Lore% 13 Gallery% 21 Achievement% 13 Wizard Run 0 Options --------- Layout 1 ASCII 0 Keyboard 0 Movement Mouse Keybinds 0 Fullscreen 0 Font 16/TamsynBold Map View 64x42 Zoom Use 0% Tactical HUD 1 Map Filters NONE Filters NONE Steam 1 RUN: 75cfb199-6dd9-4e75-93c2-b4eee5ac95d2